Cogmind - Beta 12 @@@ ROGUE MODE // 2024.01.01 @ 03:29:55 Player: sasha Result: Destroyed by G-50 Soldier with Heavy Laser Performance ------------- Evolutions (5) 2500 Regions Visited (10) 2000 Robots Destroyed (127) 635 Value Destroyed (5015) 5015 Prototype IDs (0) 0 Alien Tech Used (0) 0 Bonus (0) 0 TOTAL SCORE: 10150 Bonus ------- None Cogmind --------- Core Integrity 0/1000 Matter 223/300 Energy 95/100 System Corruption 14% Temperature Cool (9) Movement Core (150) Ox2 Location -5/Factory Parts ------- > --- POWER (2) -------- (None) > --- PROPULSION (5) --- (None) > --- UTILITY (8) ------ Advanced Signal Interpreter Target Analyzer Improved Target Analyzer Core Analyzer Core Analyzer Core Analyzer Armor Integrity Analyzer > --- WEAPON (2) ------- Bore Cannon > --- INVENTORY (5) ---- Light Fission Core Advanced Weight Redist. System Insulated Plating Authchip [Propulsion] Peak State ------------ > --- POWER ------------ Light Angular Momentum Engine Neutrino Core > --- PROPULSION ------- Carbon-fiber Leg Flexi-carbon Leg Flexi-carbon Leg Flexi-carbon Leg Flexi-carbon Leg > --- UTILITY ---------- High-capacity Storage Unit Advanced Signal Interpreter Improved Target Analyzer Core Analyzer Core Analyzer Armor Integrity Analyzer Improved Weapon Cycler Force Field > --- WEAPON ----------- Heavy Machine Gun > --- INVENTORY -------- Light Fission Core Cold Fusion Reactor Micro Fission Core Micro Fission Core Large Storage Unit Advanced Weight Redist. System Target Analyzer Core Analyzer Microactuators Insulated Plating Authchip [R/Combat] Authchip [Propulsion] Authchip [Armor] Long-range Tractor Beam Heavy Machine Gun Heavy Machine Gun Heavy Machine Gun Bore Cannon Ripper [Rating: 81] Favorites ----------- Power Light Nuclear Core Engine Light Angular Momentum Engine Power Core Light Nuclear Core Reactor Light Antimatter Reactor Propulsion Carbon-fiber Leg Treads Light Treads Leg Carbon-fiber Leg Utility Core Analyzer Device Improved Sensor Array Storage High-capacity Storage Unit Processor Core Analyzer Protection Medium Armor Plating Weapon Chainsword Energy Gun Improved Arc Projector Ballistic Gun Heavy Assault Rifle Ballistic Cannon Advanced Assault Cannon Impact Weapon Heavy Mace Slashing Weapon Chainsword Build | -11 -10 -9 -8 -7 -7 -7 -6 -6 -6 -5 ------- Run | Jun Mat Mat Mat Fac Low Low Fac Ext Cet Fac Slots Evolved 10 | . . 2 2 2 . . 2 . . 2 Power 1 | . . . . 1 . . . . . . Propulsion 3 | . . 1 1 . . . 1 . . . Utility 6 | . . 1 1 1 . . 1 . . 2 Weapon . | . . . . . . . . . . . Parts Attached 149 | 5 9 5 17 12 8 . 13 43 . 37 Power 28 | 1 1 1 2 3 2 . 4 8 . 6 Engine 15 | 1 1 1 2 . . . 2 6 . 2 Core 12 | . . . . 3 2 . 1 2 . 4 Reactor 1 | . . . . . . . 1 . . . Propulsion 53 | 2 2 1 5 3 3 . 5 22 . 10 Treads 1 | . . . 1 . . . . . . . Leg 52 | 2 2 1 4 3 3 . 5 22 . 10 Wheel . | . . . . . . . . . . . Hover . | . . . . . . . . . . . Flight . | . . . . . . . . . . . Utility 41 | 1 3 3 7 2 3 . 3 7 . 12 Device 11 | . 2 . . 2 . . . 2 . 5 Storage 4 | 1 1 . 1 . . . . . . 1 Processor 10 | . . . 2 . 1 . 2 2 . 3 Hackware . | . . . . . . . . . . . Protection 16 | . . 3 4 . 2 . 1 3 . 3 Artifact . | . . . . . . . . . . . Weapon 27 | 1 3 . 3 4 . . 1 6 . 9 Energy Gun 1 | . . . . . . . . . . 1 Energy Cannon . | . . . . . . . . . . . Ballistic Gun 12 | 1 1 . 2 2 . . 1 . . 5 Ballistic Cannon 9 | . 2 . . 1 . . . 4 . 2 Launcher . | . . . . . . . . . . . Special Weapon . | . . . . . . . . . . . Impact Weapon 1 | . . . 1 . . . . . . . Slashing Weapon 4 | . . . . 1 . . . 2 . 1 Piercing Weapon . | . . . . . . . . . . . Special Melee Weapon . | . . . . . . . . . . . Unidentified Prototypes . | . . . . . . . . . . . Parts Lost 82 | . 2 1 5 2 7 . 7 24 1 33 Power 18 | . 1 . 1 1 2 . 3 4 . 6 Propulsion 35 | . . 1 2 1 3 . 2 13 . 13 Utility 16 | . . . 1 . 2 . 2 4 . 7 Weapon 13 | . 1 . 1 . . . . 3 1 7 Highest Loss Streak 15 | . 2 1 2 1 3 . 5 7 1 15 To Critical Strikes 1 | . . . . . . . . . . 1 Average Slot Usage (%) 87 | . 86 78 55 99 83 84 95 97 100 84 Engine 6 | . 14 11 9 4 . . 3 7 6 4 Core 4 | . . . . 10 7 7 3 4 6 4 Leg 28 | . 28 32 13 30 29 30 32 32 33 22 Device 8 | . 13 11 9 14 10 7 4 2 . 5 Storage 7 | . 14 11 9 7 7 7 6 6 6 4 Processor 14 | . . . 2 15 10 15 20 23 26 27 Protection 2 | . . 1 1 . 2 7 6 4 6 3 Ballistic Gun 5 | . 12 11 8 6 . . 5 1 . 4 Ballistic Cannon 2 | . 2 . . . 4 . . 4 6 . Slashing Weapon 4 | . . . . 6 7 7 6 5 6 2 Naked Turns . | . . . . . . . . . . . Heaviest Build 84 | 9 29 36 54 61 68 56 76 79 79 84 Greatest Support 90 | 20 20 30 64 64 68 60 80 90 81 90 Greatest Overweight (x) 12 | 1 1 1 3 1 1 . 2 1 . 12 Average Overweight (x) . | . . . 1 . . . . . . . Largest Inventory Capacity 20 | 8 15 15 20 20 20 20 20 20 20 20 Average Capacity 18 | 7 12 15 15 20 20 20 20 20 20 17 Most Carried 20 | 7 13 14 19 20 19 17 20 20 20 20 Average Carried 16 | 3 10 12 13 19 17 17 17 18 20 16 Final Capacity 20 | 8 15 15 20 20 20 20 20 20 20 5 Final Carried 20 | 3 13 14 19 19 17 17 20 20 20 4 Class Distribution -------------------- 54% | Scavenger-Mutant 45% | Mutant Dominant Class ---------------- Mutant | -10/Materials Mutant | -9/Materials Mutant | -8/Materials Mutant | -7/Factory Mutant | -7/Lower Caves Scavenger-Mutant | -7/Lower Caves Scavenger-Mutant | -6/Factory Scavenger-Mutant | -6/Extension Scavenger-Mutant | -6/Cetus Scavenger-Mutant | -5/Factory Resources | -11 -10 -9 -8 -7 -7 -7 -6 -6 -6 -5 ----------- Run | Jun Mat Mat Mat Fac Low Low Fac Ext Cet Fac Matter Collected 3179 | 193 307 176 247 328 143 . 110 879 . 796 Remotely . | . . . . . . . . . . . Salvage Created 6790 | . 274 214 346 540 321 . 1058 2259 . 1778 Parts 319 | . 25 14 22 33 12 . 44 84 . 85 Haulers Intercepted 3 | . . 1 . . . . 1 1 . . Recyclers Shooed 12 | . 1 . . . . . 2 . . 9 Parts Field Recycled . | . . . . . . . . . . . Retrieved Matter . | . . . . . . . . . . . Parts Self-Destructed 10 | . . . . . 10 . . . . . Prevented 1 | . . . . . 1 . . . . . Kills | -11 -10 -9 -8 -7 -7 -7 -6 -6 -6 -5 ------- Run | Jun Mat Mat Mat Fac Low Low Fac Ext Cet Fac Combat Hostiles Destroyed 100 | . 11 3 11 8 5 . 10 28 . 24 Melee 53 | . . . . 7 5 . 10 27 . 4 Guns 41 | . 6 3 11 1 . . . . . 20 Cannons 6 | . 5 . . . . . . 1 . . Classes Destroyed 14 | . 4 2 1 4 . . . 2 . 1 Worker 4 | . 1 . . 1 . . . . . 2 Builder 1 | . . . . . . . . 1 . . Hauler 3 | . . 1 . . . . 1 1 . . Recycler 11 | . . . . 1 . . 3 4 . 3 Mechanic 1 | . . . . . . . . . . 1 Watcher 7 | . 2 1 . 1 . . . 2 . 1 Swarmer 20 | . 6 . 6 . 2 . . 3 . 3 Grunt 36 | . 5 1 3 3 2 . 7 9 . 6 Brawler 2 | . . . 1 . . . . . . 1 Duelist 3 | . . . . 1 1 . . 1 . . Sentry 12 | . . 2 1 1 . . 1 5 . 2 Hunter 7 | . . . . 2 . . . . . 5 Programmer 11 | . . . . 1 . . 2 1 . 7 Behemoth 2 | . . . . . . . . 2 . . Thug 3 | . . . . . . . . 3 . . Guerrilla 4 | . . . . . . . . 4 . . Best Kill Streak 7 | . 3 1 3 4 3 . 5 7 . 6 Combat Bots Only 7 | . 3 1 3 4 3 . 3 7 . 5 Max Kills in Single Turn 1 | . 1 1 1 1 1 . 1 1 . 1 Gunslinging . | . . . . . . . . . . . Exploded . | . . . . . . . . . . . Melee 1 | . . . . 1 1 . 1 1 . 1 Uniques/NPCs Destroyed . | . . . . . . . . . . . Combat | -11 -10 -9 -8 -7 -7 -7 -6 -6 -6 -5 -------- Run | Jun Mat Mat Mat Fac Low Low Fac Ext Cet Fac Damage Taken 13189 | . 546 365 712 771 1062 . 972 3530 524 4707 Core 2201 | . 166 54 169 76 173 . 163 374 21 1005 Absorbed by Shields 439 | . . . . . . . . . . 439 Regen/Repaired (Parts) 291 | . . . . 99 . . 98 . . 94 Core Remaining (%) 64 | 100 33 86 69 . . 64 . . 34 . Volleys Fired 387 | . 72 39 49 15 5 . . 64 8 135 Largest 2 | . 2 1 1 1 1 . . 1 1 1 Hottest 78 | . 78 23 23 48 48 . . 57 48 65 Shots Fired 404 | . 83 39 49 15 6 . . 69 8 135 Gun 294 | . 57 39 49 14 . . . 3 . 132 Cannon 110 | . 26 . . 1 6 . . 66 8 3 Launcher . | . . . . . . . . . . . Special . | . . . . . . . . . . . Kinetic 403 | . 83 39 49 15 6 . . 69 8 134 Thermal . | . . . . . . . . . . . Explosive . | . . . . . . . . . . . Electromagnetic 1 | . . . . . . . . . . 1 Robot Hit Streak 17 | . 6 8 12 7 4 . . 4 2 17 Robot Miss Streak 8 | . 8 3 6 1 1 . . 3 3 3 Penetration Max 1 | . . . . . . . . 1 1 1 Secondary Targets . | . . . . . . . . . . . Shots Hit Robots 441 | . 43 26 34 33 22 . 45 107 3 128 Core Hits 212 | . 17 7 17 17 7 . 24 61 2 60 Critical Kills 5 | . . . . . . . . 3 . 2 Critical Parts Destroyed 14 | . 1 . 1 . . . . 8 1 3 Critical Strikes 54 | . 4 . 1 6 2 . 6 23 1 11 Destroy 22 | . 1 . 1 . . . . 14 1 5 Blast 4 | . 3 . . . 1 . . . . . Sever 28 | . . . . 6 1 . 6 9 . 6 Melee Attacks 234 | . . . . 30 22 . 53 98 . 31 Impact . | . . . . . . . . . . . Slashing 234 | . . . . 30 22 . 53 98 . 31 Piercing . | . . . . . . . . . . . Sneak Attacks 26 | . . . . 3 . . 6 15 . 2 Combat Hostiles . | . . . . . . . . . . . Follow-up Attacks . | . . . . . . . . . . . Damage Inflicted 13128 | . 619 393 509 1077 776 . 1890 4269 125 3470 Guns 3818 | . 302 393 504 135 . . . 48 . 2436 Cannons 1385 | . 307 . . . 82 . . 836 125 35 Explosions . | . . . . . . . . . . . Melee 7893 | . . . . 942 694 . 1890 3385 . 982 Ramming 32 | . 10 . 5 . . . . . . 17 Kinetic 5179 | . 609 393 504 135 82 . . 884 125 2447 Thermal . | . . . . . . . . . . . Explosive . | . . . . . . . . . . . Electromagnetic 24 | . . . . . . . . . . 24 Impact . | . . . . . . . . . . . Slashing 7893 | . . . . 942 694 . 1890 3385 . 982 Piercing . | . . . . . . . . . . . Highest Corruption 14 | . 1 . 2 1 1 1 3 5 5 14 Average Corruption 3 | . 1 . 1 1 1 1 1 4 5 11 Corruption Purged . | . . . . . . . . . . . Corruption Blocked . | . . . . . . . . . . . Effects 120 | . 7 . 9 4 13 1 4 52 1 29 Message Errors 32 | . 4 . 4 2 4 . 2 13 . 3 Matter Fused 34 | . 1 . 1 1 6 1 . 14 . 10 Heat Flow Errors 10 | . 1 . 1 1 . . 1 5 . 1 Energy Discharges 13 | . 1 . 1 . 1 . 1 4 1 4 Parts Rejected 3 | . . . . . . . . 2 . 1 Parts Fused 1 | . . . 1 . . . . . . . Data Loss (minor) 11 | . . . 1 . 1 . . 5 . 4 Data Loss (major) 7 | . . . . . . . . 4 . 3 Misfires 7 | . . . . . 1 . . 5 . 1 Misdirections 1 | . . . . . . . . . . 1 Weapon Failures 1 | . . . . . . . . . . 1 Overload Shots . | . . . . . . . . . . . Overflow Damage 454 | . 1 . . 37 112 . 93 191 . 20 Projectiles 2 | . 1 . . . . . . 1 . . Explosions . | . . . . . . . . . . . Melee 452 | . . . . 37 112 . 93 190 . 20 Knockbacks 6 | . 4 . . . 1 . . 1 . . Impact . | . . . . . . . . . . . Kinetic 6 | . 4 . . . 1 . . 1 . . Secondary . | . . . . . . . . . . . Self-Inflicted Damage 1 | . . . . . . . . . . 1 Shots . | . . . . . . . . . . . Rammed 5 | . . . . . . . . . . 5 Targets Rammed 11 | . 2 . 3 . . . . . . 6 Kicked 6 | . 2 . 3 . . . . . . 1 Crushed . | . . . . . . . . . . . Highest Temperature 341 | . 106 18 118 153 4 . 86 341 112 281 Average Temperature 55 | . 35 11 57 31 3 . 33 77 61 26 Received Heat Transfer 2731 | . 114 159 207 150 180 . 327 1020 36 538 Effects 2 | . . . . . . . . 2 . . Energy Bleed 1 | . . . . . . . . 1 . . Interference 1 | . . . . . . . . 1 . . Siege Activations . | . . . . . . . . . . . Robots Corrupted . | . . . . . . . . . . . Combat Hostiles . | . . . . . . . . . . . Parts Fried . | . . . . . . . . . . . Impact Corruptions . | . . . . . . . . . . . Robots Melted . | . . . . . . . . . . . Combat Hostiles . | . . . . . . . . . . . Parts Melted 1 | . . . . . . . . . . 1 Heat Transferred . | . . . . . . . . . . . Parts Sabotaged . | . . . . . . . . . . . Parts Stolen . | . . . . . . . . . . . Parts Stripped . | . . . . . . . . . . . Power Chain Reactions . | . . . . . . . . . . . Missiles Intercepted . | . . . . . . . . . . . Alert | -11 -10 -9 -8 -7 -7 -7 -6 -6 -6 -5 ------- Run | Jun Mat Mat Mat Fac Low Low Fac Ext Cet Fac Peak Influence 312 | . 260 111 178 125 . . 120 312 80 244 Initial 78 | . . 8 39 12 . . . 27 78 39 Average 78 | . 37 46 60 44 . . 24 150 78 116 Maximum Alert Level 1 | . 1 . . . . . . 1 . 1 Low Security (%) 90 | 100 95 100 100 100 . . 100 74 100 83 Level 1 9 | . 4 . . . . . . 25 . 16 Level 2 . | . . . . . . . . . . . Level 3 . | . . . . . . . . . . . Level 4 . | . . . . . . . . . . . Level 5 . | . . . . . . . . . . . High Security . | . . . . . . . . . . . Max Security . | . . . . . . . . . . . Squads Dispatched 10 | . 1 . . 2 . . 4 . . 3 Investigation 2 | . . . . 1 . . . . . 1 Extermination 4 | . . . . 1 . . 2 . . 1 Reinforcement 4 | . 1 . . . . . 2 . . 1 Assault . | . . . . . . . . . . . Garrison . | . . . . . . . . . . . Intercept . | . . . . . . . . . . . Searches Triggered . | . . . . . . . . . . . Construction Impeded . | . . . . . . . . . . . Haulers Reinforced 1 | . . . . . . . 1 . . . Active Scanning Responses . | . . . . . . . . . . . Cargo Convoy Interrupts . | . . . . . . . . . . . Stealth | -11 -10 -9 -8 -7 -7 -7 -6 -6 -6 -5 --------- Run | Jun Mat Mat Mat Fac Low Low Fac Ext Cet Fac Distress Signals 8 | . 2 2 1 . . . . 1 1 1 Communications Jammed . | . . . . . . . . . . . Distress Signals . | . . . . . . . . . . . Times Spotted 177 | . 22 14 17 16 19 . 13 35 5 36 Peak Tracking Total 8 | . 5 5 4 4 5 . 5 4 5 8 Tactical Retreats 23 | . 1 . . . 12 . 3 6 . 1 Traps | -11 -10 -9 -8 -7 -7 -7 -6 -6 -6 -5 ------- Run | Jun Mat Mat Mat Fac Low Low Fac Ext Cet Fac Traps Triggered 6 | . 1 . 1 1 . . . 1 . 2 Indirectly . | . . . . . . . . . . . Trap Hack Attempts . | . . . . . . . . . . . Triggered . | . . . . . . . . . . . Disarmed . | . . . . . . . . . . . Reprogrammed . | . . . . . . . . . . . Reused . | . . . . . . . . . . . Traps Extracted . | . . . . . . . . . . . Installed . | . . . . . . . . . . . Triggered 1 | . . . . . 1 . . . . . Machines | -11 -10 -9 -8 -7 -7 -7 -6 -6 -6 -5 ---------- Run | Jun Mat Mat Mat Fac Low Low Fac Ext Cet Fac Machines Disabled 6 | . . . . . . . . 3 . 3 Max in Single Turn 1 | . . . . . . . . 1 . 1 Garrison Access 1 | . . . . . . . 1 . . . Machines Repaired . | . . . . . . . . . . . Machines Sabotaged . | . . . . . . . . . . . Overloaded Fab Kills . | . . . . . . . . . . . Hacking | -11 -10 -9 -8 -7 -7 -7 -6 -6 -6 -5 --------- Run | Jun Mat Mat Mat Fac Low Low Fac Ext Cet Fac Machines Accessed 17 | . 3 2 3 1 2 . 3 2 . 1 Terminals 12 | . 3 2 3 . 1 . 1 2 . . Fabricators . | . . . . . . . . . . . Repair Stations 3 | . . . . 1 . . 1 . . 1 Recycling Units . | . . . . . . . . . . . Scanalyzers . | . . . . . . . . . . . Garrison Access 1 | . . . . . . . 1 . . . Total Hacks 26 | . 4 3 4 2 2 . 7 2 . 2 Successful 18 | . 3 2 3 2 2 . 4 . . 2 Failed 8 | . 1 1 1 . . . 3 2 . . Catastrophic 2 | . . 1 . . . . . 1 . . Database Lockouts . | . . . . . . . . . . . Manual 3 | . . 1 . . . . . 2 . . Terminals 16 | . 4 3 4 . 1 . 2 2 . . Fabricators . | . . . . . . . . . . . Repair Stations 6 | . . . . 2 . . 2 . . 2 Recycling Units . | . . . . . . . . . . . Scanalyzers . | . . . . . . . . . . . Garrison Access 3 | . . . . . . . 3 . . . Terminal Hacks 11 | . 3 2 3 . 2 . 1 . . . Record 1 | . . . . . 1 . . . . . Open Door 1 | . . . . . 1 . . . . . Open DSF 1 | . . . . . . . 1 . . . Branch Access Points 1 | . . 1 . . . . . . . . Alert Level 2 | . 1 . 1 . . . . . . . Unreport Threat 1 | . 1 . . . . . . . . . Recall Reinforcements 2 | . . 1 1 . . . . . . . Zone Layout 2 | . 1 . 1 . . . . . . . Fabricator Hacks . | . . . . . . . . . . . Repair Station Hacks 6 | . . . . 2 . . 2 . . 2 Scan Component 3 | . . . . 1 . . 1 . . 1 Repair 3 | . . . . 1 . . 1 . . 1 Recycling Unit Hacks . | . . . . . . . . . . . Scanalyzer . | . . . . . . . . . . . Garrison Access Hacks 1 | . . . . . . . 1 . . . Seal Access 1 | . . . . . . . 1 . . . Unauthorized Hacks . | . . . . . . . . . . . Terminals . | . . . . . . . . . . . Fabricators . | . . . . . . . . . . . Repair Stations . | . . . . . . . . . . . Recycling Units . | . . . . . . . . . . . Scanalyzers . | . . . . . . . . . . . Garrison Access . | . . . . . . . . . . . Data Cores Recovered . | . . . . . . . . . . . Used . | . . . . . . . . . . . Hacking Detections 5 | . . 1 2 . . . 1 1 . . Full Trace Events . | . . . . . . . . . . . Feedback Events . | . . . . . . . . . . . Feedback Blocked . | . . . . . . . . . . . Robot Schematics Acquired . | . . . . . . . . . . . Robots Built . | . . . . . . . . . . . Authchips . | . . . . . . . . . . . Time . | . . . . . . . . . . . Total Robot Build Rating . | . . . . . . . . . . . Part Schematics Acquired . | . . . . . . . . . . . Parts Built . | . . . . . . . . . . . Authchips . | . . . . . . . . . . . Time . | . . . . . . . . . . . Total Part Build Rating . | . . . . . . . . . . . Parts Repaired 3 | . . . . 1 . . 1 . . 1 Time 95 | . . . . 19 . . 38 . . 38 Parts Recycled . | . . . . . . . . . . . Recycled Matter . | . . . . . . . . . . . Retrieved Matter . | . . . . . . . . . . . Retrieved Components . | . . . . . . . . . . . Parts Scanalyzed . | . . . . . . . . . . . Part Schematics Acquired . | . . . . . . . . . . . Parts Damaged . | . . . . . . . . . . . Bothacking | -11 -10 -9 -8 -7 -7 -7 -6 -6 -6 -5 ------------ Run | Jun Mat Mat Mat Fac Low Low Fac Ext Cet Fac Used RIF Installer . | . . . . . . . . . . . Robots Hacked . | . . . . . . . . . . . Non-combat . | . . . . . . . . . . . Combat . | . . . . . . . . . . . Robot Hacks Applied . | . . . . . . . . . . . Relay Couplers Released . | . . . . . . . . . . . Fabnet Peak Effective % . | . . . . . . . . . . . Robots Rewired . | . . . . . . . . . . . Allies Hacked . | . . . . . . . . . . . Hacks Repelled . | . . . . . . . . . . . Allies | -11 -10 -9 -8 -7 -7 -7 -6 -6 -6 -5 -------- Run | Jun Mat Mat Mat Fac Low Low Fac Ext Cet Fac Total Allies . | . . . . . . . . . . . Largest Group . | . . . . . . . . . . . Highest-Rated Group . | . . . . . . . . . . . Highest-Rated Ally . | . . . . . . . . . . . Total Orders . | . . . . . . . . . . . Ally Attacks . | . . . . . . . . . . . Total Damage . | . . . . . . . . . . . Kills . | . . . . . . . . . . . Allies Corrupted . | . . . . . . . . . . . Allies Melted . | . . . . . . . . . . . Intel | -11 -10 -9 -8 -7 -7 -7 -6 -6 -6 -5 ------- Run | Jun Mat Mat Mat Fac Low Low Fac Ext Cet Fac Robot Analysis Total . | . . . . . . . . . . . Derelict Logs Recovered 2 | . . . . . 2 . . . . . Drone Launches . | . . . . . . . . . . . Drone Recoveries . | . . . . . . . . . . . Exploration | -11 -10 -9 -8 -7 -7 -7 -6 -6 -6 -5 ------------- Run | Jun Mat Mat Mat Fac Low Low Fac Ext Cet Fac Turns Passed 10383 | 42 1240 688 1009 1325 1749 15 957 2100 87 1171 Spaces Moved 5644 | 35 554 441 370 719 1194 13 511 1307 60 440 Core 89 | 20 . . . . . . . . . 69 Treads 40 | . . . 40 . . . . . . . Legs 5515 | 15 554 441 330 719 1194 13 511 1307 60 371 Wheels . | . . . . . . . . . . . Hover . | . . . . . . . . . . . Flight . | . . . . . . . . . . . Fastest Speed 50 | 50 120 120 120 120 120 122 122 120 120 120 Average Speed 137 | 85 166 128 221 120 133 122 125 120 120 144 Slowest Speed 650 | 120 190 190 330 190 193 122 260 190 120 650 Overloaded Moves . | . . . . . . . . . . . Propulsion Burnouts . | . . . . . . . . . . . Robots Hopped . | . . . . . . . . . . . Cave-ins Triggered . | . . . . . . . . . . . Exploration Rate (%) 36 | 4 80 34 44 24 82 6 13 73 23 16 Regions Visited 10 Branch Regions 4 Pre-discovered Areas . | . . . . . . . . . . . Known Exits Taken 5 | . . . . . 1 1 1 1 1 . Unknown Exits Taken 5 | 1 1 1 1 1 . . . . . . Scrap Searched 3 | . . . . . 3 . . . . . Spaces Dug 7 | . . . . . . . . 7 . . Terrain Destroyed 36 | . 5 . . . 1 . . 21 2 7 Melee . | . . . . . . . . . . . Projectile 35 | . 5 . . . 1 . . 20 2 7 AOE . | . . . . . . . . . . . Terrain Rammed . | . . . . . . . . . . . Walls Destroyed . | . . . . . . . . . . . Machines Disabled . | . . . . . . . . . . . Actions | -11 -10 -9 -8 -7 -7 -7 -6 -6 -6 -5 --------- Run | Jun Mat Mat Mat Fac Low Low Fac Ext Cet Fac Total 7610 | 46 802 526 504 1129 1311 12 745 1631 67 837 Wait 951 | . 132 35 46 318 76 . 148 46 . 150 Move 5634 | 34 553 440 369 718 1193 12 510 1306 59 440 Hop . | . . . . . . . . . . . Pick Up 152 | 7 23 3 13 18 6 . 18 42 . 22 Fast Attach 21 | 1 . . 5 6 . . . 6 . 3 Attach 109 | 4 7 4 9 6 7 . 12 29 . 31 Detach 8 | . . 3 3 . . . . . . 2 Swap 19 | . 2 1 3 . 1 . 1 8 . 3 Drop 78 | . 11 1 4 18 1 . 3 27 . 13 Fire 387 | . 72 39 49 15 5 . . 64 8 135 Melee 234 | . . . . 30 22 . 53 98 . 31 Ram 6 | . . . . . . . . . . 6 Kick 6 | . 2 . 3 . . . . . . 1 Crush . | . . . . . . . . . . . Escape Stasis 5 | . . . . . . . . 5 . . Rewire . | . . . . . . . . . . . Trap . | . . . . . . . . . . . Miscellaneous . | . . . . . . . . . . . Route ------- -11/Junkyard -10/Materials (discovered 3 exits: *Mat x2 / [*Min]) -9/Materials (discovered 3 exits: *Mat / *Min x2) -8/Materials (discovered 2 exits: *Fac / [*Sto]) -7/Factory -7/Lower Caves -7/Lower Caves -6/Factory (discovered 3 exits: *Fac x2 / *Ext) -6/Extension (discovered 2 exits: *Fac / *Cet) -6/Cetus -5/Factory History --------- Turn | Location | Event 13 | -11/Junkyard | Discovered new exit (range 15) 43 | -11/Junkyard | Entered Materials 254 | -10/Materials | Discovered new exit (range 16) 317 | -10/Materials | Build established: Mutant 610 | -10/Materials | Core integrity fell below 50% 737 | -10/Materials | Discovered new exit (range 14) 1237 | -10/Materials | Discovered new exit (range 16) 1283 | -10/Materials | Entered another Materials area 1283 | -9/Materials | Evolved 2 slots: Propulsion x1, Utility x1 1683 | -9/Materials | Discovered new exit (range 14) 1955 | -9/Materials | Discovered new exit (range 13) 1961 | -9/Materials | Identified exit to Mines 1971 | -9/Materials | Entered another Materials area 1971 | -8/Materials | Evolved 2 slots: Propulsion x1, Utility x1 2380 | -8/Materials | Discovered new exit (range 6) 2951 | -8/Materials | Discovered new exit (range 13) 2980 | -8/Materials | Entered Factory 2980 | -7/Factory | Evolved 2 slots: Power x1, Utility x1 3809 | -7/Factory | Repaired Minigun 4109 | -7/Factory | Build established: Scavenger-Mutant 4132 | -7/Factory | Discovered new exit (range 16) 4305 | -7/Factory | Entered Lower Caves 4419 | -7/Lower Caves | Encountered a Warlord checkpoint 4818 | -7/Lower Caves | Lost 3 parts (1p1n1u) 4879 | -7/Lower Caves | Build established: Mutant 4974 | -7/Lower Caves | Acquired the password to a Derelict Tinkerer's latest research 5056 | -7/Lower Caves | Spotted B-75 Beast 5422 | -7/Lower Caves | Learned Factory machine intel 5453 | -7/Lower Caves | Learned Factory terminal intel 5836 | -7/Lower Caves | Build established: Scavenger-Mutant 6037 | -7/Lower Caves | Discovered new exit (range 8) 6044 | -7/Lower Caves | Identified exit to Lower Caves 6054 | -7/Lower Caves | Entered another Lower Caves area 6059 | -7/Lower Caves | Discovered new exit (range 6) 6068 | -7/Lower Caves | Identified exit to Factory 6069 | -7/Lower Caves | Entered Factory 6069 | -6/Factory | Evolved 2 slots: Propulsion x1, Utility x1 6070 | -6/Factory | Loaded intel: 286 machine locations 6071 | -6/Factory | Loaded intel: 28 terminal locations 6337 | -6/Factory | Repaired Carbon-fiber Leg 6750 | -6/Factory | Discovered new exit (range 8) 6755 | -6/Factory | Discovered new exit (range 16) 6890 | -6/Factory | Lost 5 parts (2p1n2u) 7010 | -6/Factory | Discovered new exit (range 13) 7024 | -6/Factory | Identified exit to Extension 7026 | -6/Factory | Entered Extension 7451 | -6/Extension | Disrupted transfer network 7472 | -6/Extension | Destroyed 7 combat bots 7482 | -6/Extension | Spotted B-75 Beast 7780 | -6/Extension | Lost 4 parts (1p2n1u) 8351 | -6/Extension | Core integrity fell below 50% 8358 | -6/Extension | Destroyed B-75 Beast 8363 | -6/Extension | Spotted B-75 Beast 8468 | -6/Extension | Lost 7 parts (2p4n1w) 8528 | -6/Extension | Lost 4 parts (2n1u1w) 8740 | -6/Extension | Destroyed B-75 Beast 8940 | -6/Extension | Discovered new exit (range 16) 8942 | -6/Extension | Discovered new exit (range 14) 9119 | -6/Extension | Identified exit to Cetus 9123 | -6/Extension | Identified exit to Factory 9126 | -6/Extension | Entered Cetus 9142 | -6/Cetus | Spotted Cetus Guard 9142 | -6/Cetus | Spotted Cetus Guard 9146 | -6/Cetus | Spotted Cetus Guard 9174 | -6/Cetus | Discovered exit to Factory (range 16) 9204 | -6/Cetus | Spotted Cetus Guard 9213 | -6/Cetus | Entered Factory 9213 | -5/Factory | Evolved 2 slots: Utility x2 9514 | -5/Factory | Repaired Carbon-fiber Leg 9617 | -5/Factory | Spotted B-75 Beast 9710 | -5/Factory | System corruption reached 10% 9746 | -5/Factory | Lost 6 parts (2p1n1u2w) 9965 | -5/Factory | Lost 4 parts (2n2u) 10141 | -5/Factory | Core integrity fell below 50% 10192 | -5/Factory | Lost 15 parts (2p7n2u4w) 10371 | -5/Factory | Core integrity fell below 20% 10384 | -5/Factory | Destroyed by G-50 Soldier with Heavy Laser Last Messages --------------- 10256_ Destabilizing: System interference. 10256_ Imp. Target Analyzer temporarily disabled. 10256_ Hvy. Machine Gun temporarily disabled. 10290_ System corrupted: Component data lost. 10324_ System corrupted: Substantial component data lost. 10330_ Triggered Alarm Trap. 10330_ An alarm sounds. 10330_ ALERT: Alarm triggered, dispatching investigation squad. 10346_ System corrupted: Component data lost. 10363_ G-50 Soldier destroyed. 10366_ System corrupted: Matter fused (-5). 10370_ Mic. Fission Core destroyed. 10374_ Critical hit (Burn: +37). 10377_ G-50 Soldier destroyed. 10378_ Hvy. Machine Gun destroyed. 10380_ U-05 Engineer builds a Wall. 10381_ HV Slug penetrates G-50 Soldier. 10381_ G-50 Soldier suffers critical hit (Destroy). 10381_ Destroyed Carbon-fiber Leg. 10381_ HV Slug penetrates Wall. Map ----- +----------------------------------------------------+ | ##########???????????????????????????????????? | | # ???????????????????????????????????? | | # """""?????????????????????????????????????? | | + """"""????????????????????????????????????? | | # """""""???????????????????????????????????? | | # """"""" #???????????????????????????????? | | # !#???????????????????????????????? | | # #???????????????????????????????? | | # #???????????????????????????????? | | # !! #???????????????????????????????? | | # ! #???????????????????????????????? | | # #??????? ???????????????????????? | | # [ #??????? ???????????????????????? | | ##############??????? ???????????????????????? | | ####################?+???????????????????????? | | # +? ???????????????????????? | | # #? ???????????????????????? | | # """" ## #??????????????????????? | | # """" ## #??????????????????????? | | + """" ## #??????????????????????? | | # """" !!! ## #??????????????????????? | | + ]! ## #??????????????????????? | | # ]! ## #??????????????????????? | | ################+#### #??????????????????????? | | #??????????????# #??# #??????????????????????? | | #??????????????# #??#@#??????????????????????? | | +####???????######## #### #??????????????????????? | | ???????+ #??????????????????????? | | ????????????########### #??????????????????????? | | ??????????????????????# #??????????????????????? | | ??????????????????????# #??????????????????????? | | ??????????????????????# #??????????????????????? | | ??????????????????????#g[%#??????????????????????? | | ??????????????????????# g[#??????????????????????? | | ??????????????????????;%!%#??????????????????????? | | ??????????????????????; * ??????????????????????? | | ??????????????????????+ ??????????????????????? | | ??????????????????????# ??????????????????????? | | ??????????????????????######?????????????????????? | | ?????????????????????????????????????????????????? | | ?????????????????????????????????????????????????? | | | | | | | | | | | | | | | | | | | +----------------------------------------------------+ Best States ------------- Heat Dissipation 40 Energy Generation 34 Energy Capacity 500 Matter Stores 300 Matter Capacity 300 Sight Range 16 Robot Scan Range 15 Terrain Scan Range 14 Terrain Scan Density 10 Armor Coverage 525 Resistance: KI 20 Weapon Cycling 20 Melee Speed Boost 20 Phase Shifting 5 Evasion (%) 60 Melee Accuracy 6 Target Analysis 8 Core Analysis 9 Armor Integrity Analysis 30 Recoil Reduction 1 Authchip Count 3 Item Schematics ----------------- None Robot Schematics ------------------ None Fabricated ------------ Nothing Alien Tech Used ----------------- None Achievements -------------- None Challenges ------------ None Game ------ Seed GodPhaseThermoblaster Manual? 0 Play Time 01:54:11 Cumulative 59.7 hours Start 2023.12.22 @ 13:50:05 End 2024.01.01 @ 03:29:55 Sessions 3 Manual Loads 0 Difficulty Rogue Special Mode None Game No. 72 Rogue 72 Adventurer 0 Explorer 0 Win Type - Total 0 Types 0/0/0/0/0/0/0/0/0 Lore% 31 Gallery% 38 Achievement% 32 Wizard Run 0 Options --------- ASCII 0 Keyboard 0 Movement Mouse Keybinds 0 Fullscreen 2 Font 24/Smallcaps Map View 76x50 Tactical HUD 1 Map Filters NONE Filters NONE Steam 1 RUN: 4d8008fb-b60c-432c-8fef-71d7c35d2b2b